Cogmind - Beta 15 @@@ ROGUE MODE // 2025.05.09 @ 01:53:15 Player: Geo Result: Destroyed by 7R-V8B(R) with Subdweller Beam Cannon Performance ------------- Evolutions (0) 0 Regions Visited (2) 400 Robots Destroyed (14) 70 Value Destroyed (291) 291 Prototype IDs (2) 40 Alien Tech Used (0) 0 Bonus (0) 0 TOTAL SCORE: 801 Bonus ------- None Cogmind --------- Core Integrity 0/250 Matter 289/300 Energy 42/100 System Corruption 1% Temperature Cool (9) Movement Core (350) Ox6 Location -10/Subcaves Parts ------- > --- POWER (1) -------- (None) > --- PROPULSION (2) --- (None) > --- UTILITY (2) ------ Large Storage Unit > --- WEAPON (2) ------- (None) > --- INVENTORY (15) --- Structural Scanner Sensor Array Sensor Array EMP Blaster Datajack Scrap Shield Fragment (49) Scrap Shield Fragment (46) Peak State ------------ > --- POWER ------------ Ion Engine > --- PROPULSION ------- Light Treads Light Treads > --- UTILITY ---------- Small Storage Unit Structural Scanner > --- WEAPON ----------- Assault Rifle EMP Blaster > --- INVENTORY -------- Ion Engine Sensor Array Sensor Array Medium Armor Plating Medium Armor Plating Light Assault Rifle EMP Blaster Datajack [Rating: 9] Favorites ----------- Power Ion Engine Engine Ion Engine Propulsion Light Treads Treads Light Treads Leg Aluminum Leg Wheel Subdweller Monowheel Utility Large Storage Unit Device Structural Scanner Storage Large Storage Unit Protection Medium Armor Plating Weapon Light Assault Rifle Energy Gun EM Pulse Gun Ballistic Gun Light Assault Rifle Launcher EMP Blaster Build | -11 -10 -10 ------- Run | Yrd Mat Sub Slots Evolved . | . . . Power . | . . . Propulsion . | . . . Utility . | . . . Weapon . | . . . Parts Attached 14 | . 8 6 Power 1 | . . 1 Engine 1 | . . 1 Core . | . . . Reactor . | . . . Propulsion 4 | . 2 2 Treads 2 | . 2 . Leg . | . . . Wheel 2 | . . 2 Hover . | . . . Flight . | . . . Utility 5 | . 3 2 Device 2 | . 2 . Storage 1 | . 1 . Processor . | . . . Hackware . | . . . Protection 2 | . . 2 Artifact . | . . . Weapon 4 | . 3 1 Energy Gun . | . . . Energy Cannon . | . . . Ballistic Gun 2 | . 2 . Ballistic Cannon . | . . . Launcher 2 | . 1 1 Special Weapon . | . . . Impact Weapon . | . . . Slashing Weapon . | . . . Piercing Weapon . | . . . Special Melee Weapon . | . . . Unidentified Prototypes . | . . . Parts Lost 11 | . . 11 Power 2 | . . 2 Propulsion 4 | . . 4 Utility 2 | . . 2 Weapon 3 | . . 3 Highest Loss Streak 5 | . . 5 To Critical Strikes 1 | . . 1 Average Backups 7 | . 7 6 Power . | . 1 . Propulsion . | . . . Utility 3 | . 3 3 Weapon 1 | . 1 1 Tool/Special . | . . . Unused Backups 13 | . 10 3 Power 2 | . 1 1 Propulsion 4 | . 4 . Utility 4 | . 3 1 Weapon 2 | . 2 . Tool/Special 1 | . . 1 Average Slot Usage (%) 83 | . 99 73 Engine 12 | . 14 12 Treads 10 | . 24 1 Leg 1 | . 4 . Wheel 10 | . . 17 Device 7 | . 13 4 Storage 14 | . 14 14 Ballistic Gun 20 | . 21 20 Launcher 2 | . 4 . Peak Build Rating 9 | . 9 9 Average Rating 7 | . 8 7 On Entrance 7 | 6 6 9 Naked Turns . | . . . Heaviest Build 35 | 13 32 35 Greatest Support 40 | 20 40 40 Greatest Overweight (x) 10 | . . 10 Average Overweight (x) . | . . . Largest Inventory Capacity 15 | . 15 15 Average Capacity 12 | . 8 15 Most Carried 11 | . 8 11 Average Carried 8 | . 7 8 Final Capacity 15 | 8 15 15 Final Carried 8 | 6 8 7 Class Distribution -------------------- 100% | Mutant Dominant Class ---------------- Mutant | -10/Materials Mutant | -10/Subcaves Resources | -11 -10 -10 ----------- Run | Yrd Mat Sub Matter Collected 482 | 200 146 136 Remotely . | . . . Salvage Created 377 | . 217 160 Parts 28 | . 21 7 Haulers Intercepted . | . . . Recyclers Shooed . | . . . Parts Field Recycled . | . . . Retrieved Matter . | . . . Parts Self-Destructed 10 | . . 10 Prevented . | . . . Kills | -11 -10 -10 ------- Run | Yrd Mat Sub Combat Hostiles Destroyed 13 | . 7 6 Guns 10 | . 4 6 AOE 3 | . 3 . Classes Destroyed 4 | . 3 1 Builder 1 | . 1 . Swarmer 7 | . 3 4 Grunt 4 | . 4 . Subdweller 2 | . . 2 Best Kill Streak 3 | . 3 3 Combat Bots Only 3 | . 3 3 Max Kills in Single Turn 2 | . 2 2 Gunslinging 1 | . . 1 Exploded 2 | . 2 . Melee . | . . . Uniques/NPCs Destroyed . | . . . Combat | -11 -10 -10 -------- Run | Yrd Mat Sub Hostile Shots Fired 127 | . 28 99 Missed 34 | . 4 30 Hits 93 | . 24 69 Projectile 93 | . 24 69 Critical Strikes 1 | . . 1 Damage Taken 1364 | . 252 1112 Core 262 | . 44 218 Absorbed by Shields . | . . . Core Remaining (%) 100 | 100 . . Volleys Fired 61 | . 23 38 Largest 2 | . 2 2 Hottest 40 | . 40 40 Shots Fired 98 | . 44 54 Gun 91 | . 42 49 Cannon . | . . . Launcher 7 | . 2 5 Special . | . . . Kinetic 91 | . 42 49 Thermal . | . . . Explosive . | . . . Electromagnetic 7 | . 2 5 Robot Hit Streak 11 | . 10 11 Robot Miss Streak 3 | . 2 3 Penetration Max . | . . . Secondary Targets 1 | . . 1 Max Gunslinging Chain 1 | . . 1 Shots Hit Robots 69 | . 27 42 Core Hits 26 | . 14 12 Critical Kills . | . . . Critical Parts Destroyed . | . . . Critical Strikes . | . . . Melee Attacks . | . . . Impact . | . . . Slashing . | . . . Piercing . | . . . Sneak Attacks . | . . . Combat Hostiles . | . . . Follow-up Attacks . | . . . Damage Inflicted 831 | . 355 476 Guns 640 | . 282 358 Cannons . | . . . Explosions 188 | . 73 115 Melee . | . . . Ramming 3 | . . 3 Kinetic 640 | . 282 358 Thermal . | . . . Explosive . | . . . Electromagnetic 188 | . 73 115 Impact . | . . . Slashing . | . . . Piercing . | . . . Highest Corruption 1 | . . 1 Average Corruption 1 | . . 1 Corruption Purged . | . . . Corruption Blocked . | . . . Overload Shots . | . . . Overflow Damage 2 | . . 2 Projectiles . | . . . Explosions 2 | . . 2 Melee . | . . . Knockbacks . | . . . Impact . | . . . Kinetic . | . . . Secondary . | . . . Self-Inflicted Damage 66 | . . 66 Shots 4 | . . 4 Rammed 1 | . . 1 Targets Rammed 1 | . . 1 Kicked . | . . . Crushed . | . . . Highest Temperature 6 | . 6 . Average Temperature 6 | . 6 . Received Heat Transfer 441 | . 120 321 Siege Activations . | . . . Martial Activations . | . . . Shielding Activations . | . . . Robots Disrupted . | . . . Combat Hostiles . | . . . Robots Corrupted . | . . . Combat Hostiles . | . . . Parts Fried . | . . . Impact Corruptions . | . . . Robots Melted . | . . . Combat Hostiles . | . . . Parts Melted . | . . . Heat Transferred . | . . . Parts Sabotaged . | . . . Parts Stolen . | . . . Parts Stripped . | . . . Power Chain Reactions . | . . . Alert | -11 -10 -10 ------- Run | Yrd Mat Sub Maximum Alert Level . | . . . Low Security (%) 100 | . 100 . Level 1 . | . . . Level 2 . | . . . Level 3 . | . . . Level 4 . | . . . Level 5 . | . . . High Security . | . . . Max Security . | . . . Peak Influence 107 | . 107 . Initial . | . . . Average 37 | . 37 . Influence Increases 441 | . 241 200 Destroy 0b10 Robot/C 220 | . 140 80 Destroy 0b10 Robot/NC 5 | . 5 . Destroy Leader 30 | . 30 . Trap Triggered on 0b10 10 | . 10 . Successful Hack 24 | . 24 . Destroy Structure 2 | . 2 . Partial Spotted 15 | . 15 . Lose Combat Pursuer 135 | . 15 120 Influence Decreases 441 | . 208 233 Entered New Map 17 | . . 17 Time Decay 386 | . 208 178 Lost Part 38 | . . 38 Squads Dispatched 2 | . 2 . Investigation 2 | . 2 . Extermination . | . . . Reinforcement . | . . . Assault . | . . . Garrison . | . . . Intercept . | . . . Searches Triggered . | . . . Construction Impeded . | . . . Haulers Reinforced . | . . . Active Scanning Responses . | . . . Cargo Convoy Interrupts . | . . . Stealth | -11 -10 -10 --------- Run | Yrd Mat Sub Distress Signals . | . . . Communications Jammed . | . . . Distress Signals . | . . . Times Spotted 23 | . 12 11 Peak Tracking Total 6 | . 5 6 Tactical Retreats 4 | . 1 3 Traps | -11 -10 -10 ------- Run | Yrd Mat Sub Traps Triggered . | . . . Indirectly . | . . . Trap Hack Attempts . | . . . Triggered . | . . . Disarmed . | . . . Reprogrammed 3 | . 3 . Reused 1 | . 1 . Traps Extracted . | . . . Installed . | . . . Triggered 1 | . 1 . Machines | -11 -10 -10 ---------- Run | Yrd Mat Sub Machines Disabled . | . . . Max in Single Turn . | . . . Machines Repaired . | . . . Machines Dismantled . | . . . Machines Sabotaged . | . . . Overloaded Fab Kills . | . . . Hacking | -11 -10 -10 --------- Run | Yrd Mat Sub Machines Accessed 2 | . 2 . Terminals 2 | . 2 . Fabricators . | . . . Repair Stations . | . . . Recycling Units . | . . . Scanalyzers . | . . . Garrison Access . | . . . Total Hacks 13 | . 13 . Successful 7 | . 7 . Failed 6 | . 6 . Catastrophic 1 | . 1 . Database Lockouts . | . . . Manual 2 | . 2 . Terminals 13 | . 13 . Fabricators . | . . . Repair Stations . | . . . Recycling Units . | . . . Scanalyzers . | . . . Garrison Access . | . . . Terminal Hacks 6 | . 6 . Prototype ID Bank 1 | . 1 . Branch Access Points 1 | . 1 . Locate Traps 1 | . 1 . Reprogram Traps 1 | . 1 . Surveillance Status 1 | . 1 . Hauler Manifests 1 | . 1 . Fabricator Hacks . | . . . Repair Station Hacks . | . . . Recycling Unit Hacks . | . . . Scanalyzer . | . . . Garrison Access Hacks . | . . . Unauthorized Hacks 1 | . 1 . Terminals 1 | . 1 . Botnet 1 | . 1 . Fabricators . | . . . Repair Stations . | . . . Recycling Units . | . . . Scanalyzers . | . . . Garrison Access . | . . . Data Cores Recovered . | . . . Used . | . . . Hacking Detections 2 | . 2 . Full Trace Events 1 | . 1 . Feedback Events . | . . . Feedback Blocked . | . . . Robot Schematics Acquired . | . . . Robots Built . | . . . Authchips . | . . . Time . | . . . Total Robot Build Rating . | . . . Part Schematics Acquired . | . . . Parts Built . | . . . Authchips . | . . . Time . | . . . Total Part Build Rating . | . . . Parts Repaired . | . . . Time . | . . . Parts Recycled . | . . . Recycled Matter . | . . . Retrieved Matter . | . . . Retrieved Components . | . . . Parts Scanalyzed . | . . . Part Schematics Acquired . | . . . Parts Damaged . | . . . Bothacking | -11 -10 -10 ------------ Run | Yrd Mat Sub Used RIF Installer . | . . . Robots Hacked . | . . . Non-combat . | . . . Combat . | . . . Robot Hacks Applied . | . . . Relay Couplers Released . | . . . Fabnet Peak Effective % . | . . . Robots Rewired . | . . . Allies Hacked . | . . . Hacks Repelled . | . . . Allies | -11 -10 -10 -------- Run | Yrd Mat Sub Total Allies . | . . . Largest Group . | . . . Highest-Rated Group . | . . . Highest-Rated Ally . | . . . Total Orders . | . . . Ally Attacks . | . . . Total Damage . | . . . Kills . | . . . Allies Corrupted . | . . . Allies Melted . | . . . Intel | -11 -10 -10 ------- Run | Yrd Mat Sub Active Infowar (turns) 823 | . 544 279 Sensors 333 | . 333 . Structural 490 | . 211 279 Robot Analysis Total . | . . . Derelict Logs Recovered 1 | . . 1 Drone Launches . | . . . Drone Recoveries . | . . . Exploration | -11 -10 -10 ------------- Run | Yrd Mat Sub Turns Passed 1445 | . 554 891 Spaces Moved 831 | 1 299 531 Core 4 | . . 4 Treads 260 | . 247 13 Legs 53 | 1 52 . Wheels 514 | . . 514 Hover . | . . . Flight . | . . . Fastest Speed 95 | 120 120 95 Average Speed 129 | 120 153 116 Slowest Speed 550 | 120 160 550 Overloaded Moves . | . . . Propulsion Burnouts . | . . . Robots Hopped . | . . . Potential Cave-ins . | . . . Cave-ins Triggered . | . . . Exploration Rate (%) 25 | 2 50 25 Regions Visited 2 Branch Regions 1 Pre-discovered Areas . | . . . Known Exits Taken . | . . . Unknown Exits Taken 2 | 1 1 . Scrap Searched . | . . . Spaces Dug . | . . . Terrain Destroyed . | . . . Melee . | . . . Projectile . | . . . AOE . | . . . Terrain Rammed . | . . . Walls Destroyed . | . . . Machines Disabled . | . . . Actions | -11 -10 -10 --------- Run | Yrd Mat Sub Total 1109 | . 358 751 Wait 181 | . 11 170 Move 829 | . 298 531 Hop . | . . . Pick Up 12 | . 9 3 Fast Attach 3 | . 2 1 Attach 6 | . 2 4 Detach . | . . . Swap 7 | . 4 3 Drop 9 | . 9 . Fire 61 | . 23 38 Melee . | . . . Ram . | . . . Kick . | . . . Crush 1 | . . 1 Escape Stasis . | . . . Rewire . | . . . Trap . | . . . Miscellaneous . | . . . Route ------- -11/Scrapyard -10/Materials (discovered 5 exits: [*Mat x2] / *Min x2 / [*Sub]) -10/Subcaves History --------- Turn | Location | Event 1 | -11/Scrapyard | Discovered new exit (range 0) 1 | -11/Scrapyard | Entered Materials 54 | -10/Materials | Discovered new exit (range 15) 93 | -10/Materials | Identified exit to Mines 262 | -10/Materials | Discovered new exit (range 7) 314 | -10/Materials | Build established: Mutant 495 | -10/Materials | Discovered new exit (range 15) 523 | -10/Materials | Discovered new exit (range 6) 555 | -10/Materials | Entered Subcaves 556 | -10/Subcaves | Approached by a straggling Scientist 559 | -10/Subcaves | Ambushed by Subdwellers from Twisted Machinery 594 | -10/Subcaves | Shifting Twisted Machinery released Sub. Power Source 620 | -10/Subcaves | Core integrity fell below 50% 656 | -10/Subcaves | Lost 4 parts (1p2n1u) 1052 | -10/Subcaves | Learned 4 Materials zone layouts 1259 | -10/Subcaves | Core integrity fell below 20% 1446 | -10/Subcaves | Destroyed by 7R-V8B(R) with Subdweller Beam Cannon Last Messages --------------- 00983_ S-10 Pest destroyed. 00985_ Switching to secondary target: S-10 Pest. 00985_ S-10 Pest destroyed. 00987_ Assault Rifle destroyed. 00988_ Flight Unit fries itself beyond repair. 00990_ Wheel destroyed. 01008_ S-10 Pest destroyed. 01012_ Lgt. Assault Rifle fries itself beyond repair. 01012_ Acquired 16 matter. 01013_ Acquired 9 matter. 01052_ Acquired derelict log, extracted data. Data stored: Materials zone layouts (x4). 01304_ Acquired 10 matter. 01421_ Ion Engine destroyed. 01423_ Lgt. Assault Rifle destroyed. 01424_ Sub. Monowheel destroyed. 01424_ Destroyed Sub. Monowheel. 01428_ 7R-V8B(R) misfires. 01440_ Med. Armor Plating destroyed. 01446_ EMP Blaster destroyed. Map ----- +----------------------------------------------------+ | ?????????????????????????????????????????????????? | | ?????????????????????????????????????????????????? | | ?????????????????????????????????????????????????? | | ????????????## ??????????????????????????????????? | | ??????????####%??????????????????????????????????? | | ??????????### ??????????????????????????????????? | | ??????????## ??????????????????????????????????? | | ???????????? ??????????????????????????????????? | | ???????????? ##????????????????????????????????? | | ???????# ## ##????????????????????????????????? | | ???????###### ##???????????????????????????????? | | ???????## ## ##???????????????????????????????? | | ????????? ##???????????????????????????????? | | ?????????? ###??????????????????????????????? | | ??????????? ####?????????????????????????????? | | ??????????? ###????????????????????????###### | | ???????????? #####????????????????????####### | | ???????????? " #####????????????????????### | | ???????????? # ##?#############??????## | | ????????????## ##?################???## | | ???????????? # ##?##%# # #^ ########## | | ????????????### ##?### ^ ####### | | ????????????### ##### # # "## | | ?????????????### ##### ###% "# | | ?????????????### #### #####" | | ???????????# #### ###@ ####" % | | ??????????######## # ######" "# ## | | ?????? ???### ## #####"" ""# ## | | ?????? #### #R #####?######## # | | ??????? # ## # ############# # | | ???????? ### ## ###??### #### | | ???????### ###### ###??## #### #### | | ??????#### ###### ###??## ##""## | | ??????### ### ###?### #" " # | | ??????# ## ###### # ?"# # ## | | ??????????? ## ##### ##" "# # ### | | ????????????## ## ### ##"## ## | | ????????????### ###### ### % ### | | ?????????????### ##### ## ## | | ?????????????#### ### ## # # | | ??????????????#### ## ## #### ##### | | ???????????????##### ######### ##### | | ????????????????#### ########## ###??? | | ??????????????????########### ####????## ###??? | | ??????????????????###############?????### ##???? | | ???????????????????????????#####??????########???? | | ???????????????????????????????????????#######???? | | ?????????????????????????????????????????????????? | | ?????????????????????????????????????????????????? | | ?????????????????????????????????????????????????? | +----------------------------------------------------+ Best States ------------- Heat Dissipation 25 Energy Generation 10 Energy Capacity 250 Matter Stores 300 Matter Capacity 300 Sight Range 16 Robot Scan Range 14 Terrain Scan Density 10 Armor Coverage 225 Evasion (%) 55 Recoil Reduction 2 Item Schematics ----------------- None Robot Schematics ------------------ None Fabricated ------------ Nothing Repaired ---------- Nothing Alien Tech Used ----------------- None Achievements -------------- None Challenges ------------ None Game ------ Seed TimingVisualLance Manual? 0 Play Time 00:10:16 Cumulative 479.2 hours Start 2025.05.09 @ 01:41:49 End 2025.05.09 @ 01:53:15 Sessions 1 Manual Loads 0 Difficulty Rogue Special Mode None Game No. 532 Rogue 532 Adventurer 0 Explorer 0 Win Type - Total 14 Types 9/0/4/1/0/0/0/0/0/0 Lore% 64 Gallery% 77 Achievement% 82 Wizard Run 0 Options --------- Layout 0 ASCII 0 Keyboard 0 Movement Numpad Keybinds 0 Fullscreen 1 Font 18/SmallcapsGlow Map View 76x50 Zoom Use 0% Tactical HUD 1 Map Filters NONE Filters NONE Steam 1 RUN: 09c40362-9ff2-456d-b73a-31e3b5ed3623